Cogmind - Beta 13 @@@ ROGUE MODE // 2024.07.08 @ 01:36:20 Player: ThatBishHoly Result: Destroyed by Y-45 Defender with Beam Rifle Performance ------------- Evolutions (2) 1000 Regions Visited (4) 800 Robots Destroyed (40) 200 Value Destroyed (1156) 1156 Prototype IDs (2) 40 Alien Tech Used (0) 0 Bonus (200) 200 TOTAL SCORE: 3396 Bonus ------- Entered Garrisons 200 Cogmind --------- Core Integrity 0/550 Matter 140/300 Energy 100/100 System Corruption 9% Temperature Cool (9) Movement Core (400) Ox7 Location -8/Garrison Parts ------- > --- POWER (1) -------- (None) > --- PROPULSION (4) --- (None) > --- UTILITY (3) ------ Large Storage Unit > --- WEAPON (3) ------- Flail > --- INVENTORY (15) --- Heavy Ion Engine Light Nuclear Core Aluminum Leg Improved Light Armor Plating Relay Coupler [Grunt] (23) Flak Cannon Peak State ------------ > --- POWER ------------ Heavy Ion Engine > --- PROPULSION ------- Wheel Wheel Wheel Wheel > --- UTILITY ---------- Large Storage Unit High-capacity Matter Pod Improved Light Armor Plating > --- WEAPON ----------- Flak Cannon Flak Cannon Flak Cannon > --- INVENTORY -------- Heavy Ion Engine Wheel Wheel Improved Light Armor Plating Improved Light Armor Plating Improved Light Armor Plating Flak Cannon Shock Bomb Launcher Shock Bomb Launcher Shock Bomb Launcher Shock Bomb Launcher Flail [Rating: 24] Favorites ----------- Power Heavy Ion Engine Engine Heavy Ion Engine Power Core Light Nuclear Core Propulsion Aluminum Leg Treads Light Treads Leg Aluminum Leg Wheel Wheel Utility High-capacity Matter Pod Storage High-capacity Matter Pod Protection Improved Light Armor Plating Weapon Flak Cannon Ballistic Gun Light Assault Rifle Ballistic Cannon Flak Cannon Launcher Grenade Launcher Impact Weapon Flail Build | -11 -10 -9 -8 -8 ------- Run | Yrd Mat Mat Mat Gar Slots Evolved 4 | . . 2 2 . Power . | . . . . . Propulsion 2 | . . 2 . . Utility 1 | . . . 1 . Weapon 1 | . . . 1 . Parts Attached 53 | 6 9 16 2 20 Power 6 | 1 1 2 . 2 Engine 5 | 1 1 2 . 1 Core 1 | . . . . 1 Reactor . | . . . . . Propulsion 19 | 2 3 8 . 6 Treads 3 | 2 1 . . . Leg 10 | . 2 4 . 4 Wheel 6 | . . 4 . 2 Hover . | . . . . . Flight . | . . . . . Utility 8 | 1 3 . 1 3 Device . | . . . . . Storage 4 | 1 3 . . . Processor . | . . . . . Hackware . | . . . . . Protection 4 | . . . 1 3 Artifact . | . . . . . Weapon 20 | 2 2 6 1 9 Energy Gun . | . . . . . Energy Cannon . | . . . . . Ballistic Gun 3 | 2 . 1 . . Ballistic Cannon 9 | . . 5 1 3 Launcher 6 | . 2 . . 4 Special Weapon . | . . . . . Impact Weapon 2 | . . . . 2 Slashing Weapon . | . . . . . Piercing Weapon . | . . . . . Special Melee Weapon . | . . . . . Unidentified Prototypes 2 | . . 2 . . Parts Lost 28 | . 1 6 . 21 Power 3 | . 1 1 . 1 Propulsion 12 | . . 3 . 9 Utility 4 | . . . . 4 Weapon 9 | . . 2 . 7 Highest Loss Streak 8 | . 1 4 . 8 To Critical Strikes . | . . . . . Average Slot Usage (%) 86 | . 96 82 90 78 Engine 9 | . 13 8 9 5 Treads 4 | . 13 . . . Leg 16 | . 14 25 . 12 Wheel 6 | . . 5 36 9 Storage 21 | . 25 22 18 17 Protection 2 | . . . . 6 Ballistic Gun 3 | . 10 . . . Ballistic Cannon 11 | . . 18 27 12 Launcher 8 | . 17 2 . 7 Impact Weapon 1 | . . . . 3 Naked Turns . | . . . . . Heaviest Build 53 | 12 35 44 53 53 Greatest Support 40 | 40 40 40 40 40 Greatest Overweight (x) 15 | . 1 14 1 15 Average Overweight (x) . | . . 1 1 1 Largest Inventory Capacity 15 | 8 15 15 15 15 Average Capacity 12 | 7 8 15 15 15 Most Carried 15 | 5 8 15 13 13 Average Carried 7 | . 4 10 12 8 Final Capacity 15 | 8 15 15 15 15 Final Carried 14 | . 5 14 12 6 Class Distribution -------------------- 76% | Mutant 10% | Tank 9% | Gunner 4% | Scavenger-Mutant Dominant Class ---------------- Mutant | -10/Materials Mutant | -9/Materials Gunner | -8/Materials Mutant | -8/Garrison Resources | -11 -10 -9 -8 -8 ----------- Run | Yrd Mat Mat Mat Gar Matter Collected 903 | 260 174 193 . 276 Remotely . | . . . . . Salvage Created 988 | . 431 281 . 276 Parts 73 | . 38 19 . 16 Haulers Intercepted 2 | . 1 1 . . Recyclers Shooed 1 | . . 1 . . Parts Field Recycled . | . . . . . Retrieved Matter . | . . . . . Parts Self-Destructed . | . . . . . Prevented . | . . . . . Kills | -11 -10 -9 -8 -8 ------- Run | Yrd Mat Mat Mat Gar Combat Hostiles Destroyed 30 | . 17 6 . 7 Melee 3 | . . . . 3 Guns 4 | . 4 . . . Cannons 8 | . . 6 . 2 AOE 14 | . 13 . . 1 Classes Destroyed 7 | . 5 2 . . Worker 4 | . 1 3 . . Builder 2 | . 2 . . . Hauler 2 | . 1 1 . . Recycler 2 | . . 2 . . Swarmer 9 | . 6 3 . . Grunt 20 | . 11 2 . 7 Sentry 1 | . . 1 . . Best Kill Streak 7 | . 7 3 . 2 Combat Bots Only 5 | . 5 3 . 2 Max Kills in Single Turn 4 | . 4 2 . 1 Gunslinging . | . . . . . Exploded 3 | . 3 . . 1 Melee 1 | . . . . 1 Uniques/NPCs Destroyed . | . . . . . Combat | -11 -10 -9 -8 -8 -------- Run | Yrd Mat Mat Mat Gar Hostile Shots Fired 359 | . 89 46 15 209 Missed 94 | . 26 12 5 51 Damage Taken 3981 | . 727 445 212 2597 Core 682 | . 95 34 84 469 Absorbed by Shields 17 | . . . . 17 Core Remaining (%) 84 | 100 62 91 . . Volleys Fired 63 | . 28 19 . 16 Largest 3 | . 2 2 . 3 Hottest 132 | . 60 88 . 132 Shots Fired 115 | . 56 34 . 25 Gun 36 | . 36 . . . Cannon 47 | . . 30 . 17 Launcher 32 | . 20 4 . 8 Special . | . . . . . Kinetic 83 | . 36 30 . 17 Thermal . | . . . . . Explosive 24 | . 20 4 . . Electromagnetic 8 | . . . . 8 Robot Hit Streak 16 | . 16 4 . 6 Robot Miss Streak 10 | . 2 10 . 5 Penetration Max . | . . . . . Secondary Targets . | . . . . . Shots Hit Robots 83 | . 37 26 . 20 Core Hits 86 | . 31 33 1 21 Critical Kills 1 | . . . . 1 Critical Parts Destroyed 2 | . 1 . . 1 Critical Strikes 3 | . 1 . . 2 Destroy 1 | . 1 . . . Smash 2 | . . . . 2 Melee Attacks 5 | . . . . 5 Impact 5 | . . . . 5 Slashing . | . . . . . Piercing . | . . . . . Sneak Attacks . | . . . . . Combat Hostiles . | . . . . . Follow-up Attacks . | . . . . . Damage Inflicted 2657 | . 1351 474 58 774 Guns 209 | . 209 . . . Cannons 608 | . . 386 . 222 Explosions 1400 | . 1128 88 . 184 Melee 183 | . . . . 183 Ramming 257 | . 14 . 58 185 Kinetic 817 | . 209 386 . 222 Thermal . | . . . . . Explosive 1216 | . 1128 88 . . Electromagnetic 184 | . . . . 184 Impact 183 | . . . . 183 Slashing . | . . . . . Piercing . | . . . . . Highest Corruption 9 | . . . . 9 Average Corruption 8 | . . . . 8 Corruption Purged . | . . . . . Corruption Blocked . | . . . . . Effects 15 | . . . . 15 Message Errors 6 | . . . . 6 Matter Fused 2 | . . . . 2 Heat Flow Errors 1 | . . . . 1 Energy Discharges 1 | . . . . 1 Data Loss (minor) 1 | . . . . 1 Data Loss (major) 3 | . . . . 3 Misfires 1 | . . . . 1 Overload Shots . | . . . . . Overflow Damage 79 | . 29 . . 50 Projectiles . | . . . . . Explosions 29 | . 29 . . . Melee 50 | . . . . 50 Knockbacks 18 | . . 14 1 3 Impact 2 | . . . 1 1 Kinetic 13 | . . 11 . 2 Secondary 3 | . . 3 . . Self-Inflicted Damage 288 | . 57 44 29 158 Shots 13 | . 3 4 . 6 Rammed 29 | . . . 5 24 Targets Rammed 46 | . 4 . 5 37 Kicked 17 | . 4 . . 13 Crushed . | . . . . . Highest Temperature 190 | . 30 69 2 190 Average Temperature 39 | . 8 21 2 74 Received Heat Transfer 1884 | . 276 135 126 1347 Siege Activations . | . . . . . Robots Corrupted 1 | . . . . 1 Combat Hostiles 1 | . . . . 1 Parts Fried . | . . . . . Impact Corruptions 1 | . . . . 1 Robots Melted . | . . . . . Combat Hostiles . | . . . . . Parts Melted . | . . . . . Heat Transferred . | . . . . . Parts Sabotaged . | . . . . . Parts Stolen . | . . . . . Parts Stripped . | . . . . . Power Chain Reactions . | . . . . . Alert | -11 -10 -9 -8 -8 ------- Run | Yrd Mat Mat Mat Gar Peak Influence 381 | . 381 302 121 210 Initial 160 | . . 160 61 81 Average 151 | . 179 178 76 122 Maximum Alert Level 1 | . 1 1 . 1 Low Security (%) 76 | 100 56 70 100 96 Level 1 23 | . 43 29 . 3 Level 2 . | . . . . . Level 3 . | . . . . . Level 4 . | . . . . . Level 5 . | . . . . . High Security . | . . . . . Max Security . | . . . . . Squads Dispatched 4 | . 4 . . . Investigation 2 | . 2 . . . Extermination . | . . . . . Reinforcement 2 | . 2 . . . Assault . | . . . . . Garrison . | . . . . . Intercept . | . . . . . Searches Triggered . | . . . . . Construction Impeded . | . . . . . Haulers Reinforced . | . . . . . Active Scanning Responses . | . . . . . Cargo Convoy Interrupts . | . . . . . Stealth | -11 -10 -9 -8 -8 --------- Run | Yrd Mat Mat Mat Gar Distress Signals 1 | . . . 1 . Communications Jammed . | . . . . . Distress Signals . | . . . . . Times Spotted 44 | . 17 8 10 9 Peak Tracking Total 8 | . 5 3 8 4 Tactical Retreats 2 | . 1 . 1 . Traps | -11 -10 -9 -8 -8 ------- Run | Yrd Mat Mat Mat Gar Traps Triggered 8 | . 2 1 . 5 Indirectly . | . . . . . Trap Hack Attempts . | . . . . . Triggered . | . . . . . Disarmed 4 | . . . 4 . Reprogrammed . | . . . . . Reused . | . . . . . Traps Extracted . | . . . . . Installed . | . . . . . Triggered . | . . . . . Machines | -11 -10 -9 -8 -8 ---------- Run | Yrd Mat Mat Mat Gar Machines Disabled 3 | . 2 . . 1 Max in Single Turn 2 | . 2 . . 1 Garrison Relay 1 | . . . . 1 Machines Repaired . | . . . . . Machines Dismantled . | . . . . . Machines Sabotaged . | . . . . . Overloaded Fab Kills . | . . . . . Hacking | -11 -10 -9 -8 -8 --------- Run | Yrd Mat Mat Mat Gar Machines Accessed 7 | . 2 2 2 1 Terminals 6 | . 2 2 1 1 Fabricators . | . . . . . Repair Stations . | . . . . . Recycling Units . | . . . . . Scanalyzers . | . . . . . Garrison Access 1 | . . . 1 . Total Hacks 16 | . 7 2 4 3 Successful 8 | . 3 1 3 1 Failed 8 | . 4 1 1 2 Catastrophic 1 | . . . . 1 Database Lockouts . | . . . . . Manual 1 | . . . . 1 Terminals 14 | . 7 2 2 3 Fabricators . | . . . . . Repair Stations . | . . . . . Recycling Units . | . . . . . Scanalyzers . | . . . . . Garrison Access 2 | . . . 2 . Terminal Hacks 7 | . 3 1 2 1 Emergency Access Points 1 | . 1 . . . Alert Level 2 | . 2 . . . Locate Traps 2 | . . 1 1 . Disarm Traps 1 | . . . 1 . Patrol Navigation 1 | . . . . 1 Fabricator Hacks . | . . . . . Repair Station Hacks . | . . . . . Recycling Unit Hacks . | . . . . . Scanalyzer . | . . . . . Garrison Access Hacks 1 | . . . 1 . Unlock Access 1 | . . . 1 . Unauthorized Hacks . | . . . . . Terminals . | . . . . . Fabricators . | . . . . . Repair Stations . | . . . . . Recycling Units . | . . . . . Scanalyzers . | . . . . . Garrison Access . | . . . . . Data Cores Recovered . | . . . . . Used . | . . . . . Hacking Detections 6 | . 2 2 1 1 Full Trace Events 2 | . 1 . . 1 Feedback Events . | . . . . . Feedback Blocked . | . . . . . Robot Schematics Acquired . | . . . . . Robots Built . | . . . . . Authchips . | . . . . . Time . | . . . . . Total Robot Build Rating . | . . . . . Part Schematics Acquired . | . . . . . Parts Built . | . . . . . Authchips . | . . . . . Time . | . . . . . Total Part Build Rating . | . . . . . Parts Repaired . | . . . . . Time . | . . . . . Parts Recycled . | . . . . . Recycled Matter . | . . . . . Retrieved Matter . | . . . . . Retrieved Components . | . . . . . Parts Scanalyzed . | . . . . . Part Schematics Acquired . | . . . . . Parts Damaged . | . . . . . Bothacking | -11 -10 -9 -8 -8 ------------ Run | Yrd Mat Mat Mat Gar Used RIF Installer . | . . . . . Robots Hacked . | . . . . . Non-combat . | . . . . . Combat . | . . . . . Robot Hacks Applied . | . . . . . Relay Couplers Released 3 | . . . . 3 Machine Destruction 3 | . . . . 3 Fabnet Peak Effective % . | . . . . . Robots Rewired . | . . . . . Allies Hacked . | . . . . . Hacks Repelled . | . . . . . Allies | -11 -10 -9 -8 -8 -------- Run | Yrd Mat Mat Mat Gar Total Allies . | . . . . . Largest Group . | . . . . . Highest-Rated Group . | . . . . . Highest-Rated Ally . | . . . . . Total Orders . | . . . . . Ally Attacks . | . . . . . Total Damage . | . . . . . Kills . | . . . . . Allies Corrupted . | . . . . . Allies Melted . | . . . . . Intel | -11 -10 -9 -8 -8 ------- Run | Yrd Mat Mat Mat Gar Robot Analysis Total . | . . . . . Derelict Logs Recovered . | . . . . . Drone Launches . | . . . . . Drone Recoveries . | . . . . . Exploration | -11 -10 -9 -8 -8 ------------- Run | Yrd Mat Mat Mat Gar Turns Passed 2215 | 58 706 664 108 679 Spaces Moved 1138 | 42 378 331 106 281 Core 31 | 18 . 3 . 10 Treads 181 | 24 157 . . . Legs 598 | . 221 240 . 137 Wheels 328 | . . 88 106 134 Hover . | . . . . . Flight . | . . . . . Fastest Speed 50 | 50 120 95 95 95 Average Speed 158 | 112 157 169 95 178 Slowest Speed 800 | 160 190 750 95 800 Overloaded Moves . | . . . . . Propulsion Burnouts . | . . . . . Robots Hopped . | . . . . . Cave-ins Triggered . | . . . . . Exploration Rate (%) 22 | 3 44 27 13 27 Regions Visited 4 Branch Regions . Pre-discovered Areas . | . . . . . Known Exits Taken 1 | . . . 1 . Unknown Exits Taken 3 | 1 1 1 . . Scrap Searched . | . . . . . Spaces Dug . | . . . . . Terrain Destroyed 169 | . 135 34 . . Melee . | . . . . . Projectile 1 | . . 1 . . AOE 168 | . 135 33 . . Terrain Rammed . | . . . . . Walls Destroyed . | . . . . . Machines Disabled . | . . . . . Actions | -11 -10 -9 -8 -8 --------- Run | Yrd Mat Mat Mat Gar Total 1410 | 52 439 401 113 405 Wait . | . . . . . Move 1135 | 41 377 330 106 281 Hop . | . . . . . Pick Up 56 | 5 14 27 . 10 Fast Attach 1 | 1 . . . . Attach 38 | 5 2 13 2 16 Detach 1 | . . . . 1 Swap 16 | . 7 3 . 6 Drop 18 | . 7 9 . 2 Fire 63 | . 28 19 . 16 Melee 5 | . . . . 5 Ram 29 | . . . 5 24 Kick 17 | . 4 . . 13 Crush . | . . . . . Escape Stasis 31 | . . . . 31 Rewire . | . . . . . Trap . | . . . . . Miscellaneous . | . . . . . Route ------- -11/Scrapyard -10/Materials -9/Materials -8/Materials -8/Garrison (discovered 1 exit: [*Mat]) History --------- Turn | Location | Event 15 | -11/Scrapyard | Discovered new exit (range 15) 59 | -11/Scrapyard | Entered Materials 302 | -10/Materials | Build established: Mutant 689 | -10/Materials | Discovered new exit (range 16) 765 | -10/Materials | Entered another Materials area 765 | -9/Materials | Evolved 2 slots: Propulsion x2 881 | -9/Materials | Lost 4 parts (1p1n2w) 1388 | -9/Materials | Discovered new exit (range 12) 1429 | -9/Materials | Entered another Materials area 1429 | -8/Materials | Evolved 2 slots: Utility x1, Weapon x1 1537 | -8/Materials | Identified exit to Garrison 1537 | -8/Materials | Entered Garrison 1623 | -8/Garrison | Triggered checkpoint 1667 | -8/Garrison | Triggered checkpoint 1738 | -8/Garrison | Core integrity fell below 50% 1759 | -8/Garrison | Lost 7 parts (4n1u2w) 1993 | -8/Garrison | Lost 5 parts (2n3w) 2109 | -8/Garrison | Discovered new exit (range 13) 2167 | -8/Garrison | Core integrity fell below 20% 2216 | -8/Garrison | Destroyed by Y-45 Defender with Beam Rifle Last Messages --------------- 02142_ G-47 Trooper system terminally corrupted. 02143_ Acquired 55 matter. 02145_ Critical hit (Burn: +37). 02151_ G-47 Trooper knocked back. 02151_ G-47 Trooper destroyed. 02151_ G-47 Trooper misfires. 02157_ Aluminum Leg destroyed. 02161_ G-47 Trooper misfires. 02162_ System corrupted: Matter fused (-8). 02165_ G-47 Trooper misfires. 02166_ Acquired 42 matter. 02172_ Imp. Light Armor Plating destroyed. 02179_ Flak Cannon destroyed. 02181_ Shock Bomb Launcher destroyed. 02183_ Acquired Corrupted Aluminum Leg. 02189_ Lgt. Nuclear Core destroyed. 02200_ Imp. Light Armor Plating destroyed. 02201_ G-47 Trooper IFF system glitched. 02203_ System corrupted: Component data lost. 02205_ Hcp. Matter Pod destroyed. Map ----- +----------------------------------------------------+ | | | | | | | | | ?????????????????????????????????????????????????? | | ?????????????????????????????????????????????????? | | ?????????????????????????????????????????????????? | | ?????????????????????????????????????????????????? | | ?????????????????????????????????????????????????? | | ?????????????????????????????????????????????????? | | ?????????????????????????????????????????????????? | | ?????????????????????????????????????????????????? | | ?????????????????????????????????????????????????? | | ?????????????????????????????????????????????????? | | ?????????????????????????????????????????????????? | | ?????????????????????????????????????????????????? | | ?????????????????????????????????????????????????? | | ?????????????????????????????????????????????????? | | ?????????????????????????????????????????????????? | | ?????????????????????????????????????????????????? | | ?????????????????????????????????????????????????? | | ?????????????????????????????????????????????????? | | ???????????????????????######????????????????????? | | ???????????????????????# #????????????????????? | | ???????????????????????# < #????????????????????? | | ???????????????????????# @ #????????????????????? | | ???????????????????????# ###????????????????????? | | ???????????????????????# #??????????????????????? | | ???????????????????????# #??????????????????????? | | ???????????????????# ### ### """"#??????????????? | | ???????????????????# ;g "#??????????????? | | ???????????????????# ### ### """"#??????????????? | | ???????????????????????# #??????????????????????? | | ???????????????????????#!Y#??????????????????????? | | ????????????############ #######????????????????? | | ????????????# #????????????????? | | ????????????# [#### #????????????????? | | ????????????# ########### #?????????????????????? | | ????????????# #?????????#=#?????????????????????? | | ????????????# #?????????# #?????????????????????? | | ????????????# #?????????# #?????????????????????? | | ????????????# #?????????# ?????????????????????? | | ????????????# #?????????#"#?????????????????????? | | ????????????# #????????? #?????????????????????? | | ????????????# #?????????# #?????????????????????? | | ??# ???????# #?????????# #?????????????????????? | | ?## ##""""## ##????????# #?????????????????????? | | ?# #????????# #?????????????????????? | | ?# #????????? ??????????????????????? | | ?# #?????????#??????????????????????? | +----------------------------------------------------+ Best States ------------- Heat Dissipation 31 Energy Generation 14 Energy Capacity 280 Matter Stores 376 Matter Capacity 500 Sight Range 16 Terrain Scan Density 10 Armor Coverage 150 Evasion (%) 55 Recoil Reduction 2 Item Schematics ----------------- None Robot Schematics ------------------ None Fabricated ------------ Nothing Alien Tech Used ----------------- None Achievements -------------- None Challenges ------------ None Game ------ Seed LegMomentumVibroblade Manual? 0 Play Time 00:24:37 Cumulative 28.4 hours Start 2024.07.08 @ 01:14:36 End 2024.07.08 @ 01:36:20 Sessions 1 Manual Loads 0 Difficulty Rogue Special Mode None Game No. 89 Rogue 89 Adventurer 0 Explorer 0 Win Type - Total 0 Types 0/0/0/0/0/0/0/0/0 Lore% 17 Gallery% 32 Achievement% 23 Wizard Run 0 Options --------- Layout 1 ASCII 0 Keyboard 0 Movement Arrows Keybinds 0 Fullscreen 1 Font 16/SmallcapsGlow Map View 25x20 Zoom Use 100% Tactical HUD 1 Map Filters NONE Filters NONE Steam SD RUN: 161021bc-6064-4781-8772-01a2762dd367